bitfinex/quotes_SOLUSD_20251009
["timestamp","ask_amount","ask_price","bid_price","bid_amount"]
[1760024613967,6.02416629,219.08,219.02,5.23579307]
[1760024614168,6.02416629,219.03,219.0,7.0]
[1760024614481,6.02416629,219.01,219.0,7.0]
[1760024614788,40.26416629,219.01,219.0,7.0]
[1760024615376,0.5,219.06,219.0,7.67]
[1760024615561,6.02416629,219.03,219.0,7.67]
[1760024615761,6.02416629,219.03,219.01,0.67]
[1760024616071,6.02416629,219.03,219.0,7.0]
[1760024616072,6.02416629,219.03,219.02,0.67]
[1760024616279,6.02416629,219.03,219.0,7.0]
[1760024616479,20.8,218.99,218.87,10.05546966]
[1760024616784,6.02416629,218.88,218.87,9.38546966]
[1760024618186,4.56682258,218.98,218.87,14.62428863]
[1760024618389,6.02416629,218.92,218.88,0.67]
[1760024618585,6.02416629,218.92,218.89,0.67]
[1760024619392,6.02416629,218.9,218.89,0.67]
[1760024619891,6.02416629,218.9,218.87,13.95428863]
[1760024620090,6.02416629,218.88,218.87,9.38546966]
[1760024620284,6.02416629,218.88,218.87,10.05546966]
[1760024620483,6.02416629,218.88,218.87,9.38546966]
[1760024620687,6.02416629,218.9,218.87,10.05546966]
[1760024620889,34.46,218.93,218.88,0.67]
[1760024621088,6.02416629,218.92,218.89,0.67]
[1760024621288,27.52416629,219.0,218.9,0.67]
[1760024621498,6.02416629,218.91,218.9,0.67]
[1760024621689,34.52,218.96,218.9,0.67]
[1760024621897,6.02416629,218.92,218.87,18.5681518]
[1760024622507,6.02416629,218.91,218.87,18.5681518]
[1760024623286,34.52,218.96,218.87,18.5681518]
[1760024623487,6.02416629,218.92,218.87,18.5681518]
[1760024623893,6.02416629,218.92,218.88,0.69]
[1760024624184,34.52,218.96,218.87,18.5681518]
[1760024624185,6.02416629,218.89,218.87,2.57702696]
[1760024624393,0.66,218.95,218.87,7.83590616]
[1760024624601,0.69,218.99,218.88,0.68]
[1760024624783,6.02416629,218.94,218.88,0.68]
[1760024625418,6.02416629,218.94,218.89,4.56850472]
[1760024625589,6.02416629,218.94,218.89,0.68]
[1760024626108,6.02416629,218.94,218.87,2.57702696]
[1760024626109,6.02416629,218.92,218.88,4.56870284]
[1760024626310,6.02416629,218.92,218.89,0.68]
[1760024626518,6.02416629,218.92,218.88,4.56870284]
[1760024626690,6.02416629,218.9,218.87,2.57702696]
[1760024627006,6.02416629,218.92,218.87,7.82594527]
[1760024627329,11.41623309,218.99,218.87,7.82594527]
[1760024627330,16.61704603,218.88,218.87,1.85702696]
[1760024627625,20.8,218.85,218.78,0.1]
[1760024627986,6.02416629,218.8,218.78,0.1]
[1760024628916,0.69,218.86,218.78,0.1]
[1760024629116,6.02416629,218.79,218.78,0.1]
[1760024629707,46.20475909,218.79,218.78,0.1]
[1760024629912,6.71416629,218.79,218.78,0.1]
[1760024630095,6.02416629,218.79,218.78,0.1]
[1760024630420,5.2605928,218.79,218.78,0.1]
[1760024630583,35.32,218.81,218.78,0.1]
[1760024630785,6.02416629,218.79,218.78,0.1]
[1760024631087,6.02416629,218.81,218.78,0.78]
[1760024631302,35.34,218.83,218.79,5.25045371]
[1760024631495,6.02416629,218.82,218.8,0.68]
[1760024631914,6.02416629,218.84,218.81,0.68]
[1760024632216,6.02416629,218.86,218.82,0.68]
[1760024632416,0.69,218.94,218.79,4.57045371]
[1760024632737,6.02416629,218.83,218.79,15.99693572]
[1760024632931,6.02416629,218.83,218.8,0.68]
[1760024633233,0.69,218.93,218.82,10.87647521]
[1760024633435,6.02416629,218.91,218.83,16.6741507]
[1760024633609,6.02416629,218.93,218.84,0.68]
[1760024634031,44.54483831,218.96,218.84,0.68]
[1760024634210,6.02416629,218.92,218.84,0.68]
[1760024635227,6.02416629,218.89,218.84,0.68]
[1760024635430,6.02416629,218.89,218.8,20.8]
[1760024635431,4.56758707,218.94,218.8,20.8]
[1760024635605,6.02416629,218.89,218.81,0.68]
[1760024636436,6.02416629,218.85,218.79,11.55647521]
[1760024636617,6.02416629,218.85,218.8,4.57038391]
[1760024636799,15.13489848,218.9,218.8,5.25038391]
[1760024636800,6.02416629,218.84,218.8,5.25038391]
[1760024637134,6.02416629,218.82,218.78,0.1]
[1760024637308,6.02416629,218.82,218.78,4.6707914]
[1760024637508,3.02716704,218.86,218.78,5.3507914]
[1760024637729,3.02716704,218.87,218.78,4.6707914]
[1760024637926,6.02416629,218.9,218.79,11.55647521]
[1760024638213,6.02416629,218.91,218.81,10.87647521]
[1760024638414,6.02416629,218.91,218.82,0.68]
[1760024638610,4.56662708,218.98,218.86,15.99195832]
[1760024638912,6.02416629,218.95,218.87,0.68]
[1760024639424,3.03053427,218.94,218.87,0.68]
[1760024639623,6.02416629,218.95,218.87,0.68]
[1760024639840,6.02416629,218.99,218.88,10.87647521]
[1760024640020,6.02416629,218.99,218.9,10.87647521]
[1760024640021,3.03460066,218.98,218.9,10.87647521]
[1760024640217,3.03460066,218.97,218.87,10.87647521]
[1760024640436,3.03460066,218.96,218.88,0.68]
[1760024640741,9.05876695,218.95,218.88,5.2485562]
[1760024640913,3.03460066,218.94,218.88,5.2485562]
[1760024641114,3.03460066,218.93,218.88,5.2485562]
[1760024641312,3.04627188,218.92,218.88,5.2485562]
[1760024641651,3.04627188,218.91,218.89,0.68]
[1760024641932,6.02416629,218.95,218.89,0.68]
[1760024642144,3.04629182,218.94,218.9,4.56829602]
[1760024642308,3.04629182,218.93,218.9,4.56829602]
[1760024642509,3.04629182,218.92,218.9,4.56829602]
[1760024642743,3.04629182,218.91,218.9,4.56829602]
[1760024643055,3.04629182,218.91,218.9,5.24829602]
[1760024643263,3.04629182,218.91,218.9,16.12477123]
[1760024643557,3.76087567,218.98,218.9,27.54551129]
[1760024643762,3.05489428,218.97,218.9,27.54551129]
[1760024643973,3.05489428,218.96,218.9,27.54551129]
[1760024644125,3.05489428,218.95,218.9,27.54551129]
[1760024644326,9.07906057,218.94,218.83,10.87647521]
[1760024644553,3.05489428,218.93,218.87,0.68]
[1760024644849,3.05489428,218.92,218.88,10.87647521]
[1760024645066,3.05489428,218.91,218.89,0.68]
[1760024645219,3.76087567,218.98,218.9,0.68]
[1760024645423,0.69,218.99,218.9,0.68]
[1760024645424,3.05582674,218.97,218.9,0.68]
[1760024645648,3.05582674,218.96,218.9,0.68]
[1760024645851,3.05582674,218.95,218.9,0.68]
[1760024646047,3.05582674,218.94,218.9,0.68]
[1760024646232,3.05582674,218.93,218.91,16.66830569]
[1760024646433,3.76087567,219.0,218.92,0.68]
[1760024646645,3.05564126,218.99,218.92,0.68]
[1760024646833,3.05564126,218.98,218.92,0.68]
[1760024647032,3.05564126,218.97,218.92,0.68]
[1760024647234,3.05564126,218.96,218.92,0.68]
[1760024647444,6.02416629,219.0,218.92,0.68]
[1760024647649,3.05536843,218.99,218.92,0.68]
[1760024647845,3.05536843,218.98,218.92,0.68]
[1760024648153,3.05536843,218.97,218.93,15.9868451]
[1760024648359,6.71416629,219.02,218.94,0.68]
[1760024648534,3.05520476,219.01,218.94,0.68]
[1760024648732,3.05520476,219.0,218.94,0.68]
[1760024648929,3.05520476,218.99,218.94,0.68]
[1760024649145,3.05520476,218.98,218.93,4.56767003]
[1760024649452,6.02416629,219.0,218.93,5.24767003]
[1760024649652,3.05530999,218.99,218.93,4.56767003]
[1760024649857,6.02416629,219.0,218.93,15.9868451]
[1760024650044,3.05507366,218.99,218.93,15.9868451]
[1760024650252,6.71416629,219.02,218.93,15.9868451]
[1760024650449,3.0549814,219.01,218.93,15.9868451]
[1760024650654,3.0549814,219.0,218.94,0.68]
[1760024650859,0.69,219.05,218.95,10.87647521]
[1760024651055,6.02416629,219.02,218.94,35.24]
[1760024651261,6.02416629,219.0,218.93,39.80767003]
[1760024651634,3.05495964,218.99,218.93,4.56767003]
[1760024651953,3.055147,218.98,218.93,4.56767003]
[1760024652136,1.19,219.02,218.92,4.56787867]
[1760024652137,4.56601764,219.01,218.92,4.56787867]
[1760024652453,9.07922672,219.0,218.92,15.98757536]
[1760024652649,3.05506043,218.99,218.92,15.98757536]
[1760024652852,6.02416629,219.0,218.92,4.56787867]
[1760024653058,3.05499898,218.99,218.92,4.56787867]
[1760024653360,3.05487996,219.01,218.93,0.72]
[1760024653544,3.05487996,219.0,218.92,4.56787867]
[1760024653748,9.07904587,218.99,218.92,35.16]
[1760024653966,4.565858,219.02,218.92,35.16]
[1760024654264,3.05487883,219.01,218.93,5.28767003]
[1760024654473,3.05480821,219.02,218.93,0.72]
[1760024654630,9.30391536,219.03,218.93,0.72]
[1760024654840,9.30394189,219.03,218.93,0.72]
[1760024655248,3.05473356,219.02,218.93,0.72]
[1760024655450,9.30394189,219.03,218.93,0.72]
[1760024655648,8.31034655,219.03,218.93,0.72]
[1760024655853,4.0483289,219.01,218.93,0.72]
[1760024656061,8.61416764,219.02,218.94,4.5674614]
[1760024656457,4.7383289,219.03,218.94,15.98611491]
[1760024656857,0.69,219.03,218.94,15.98611491]
[1760024657058,0.69,219.03,218.95,0.72]
[1760024657356,7.79369692,219.06,218.95,0.72]
[1760024657564,0.69,219.06,218.95,11.59647521]
[1760024657771,0.69,219.06,218.95,10.87647521]
[1760024658076,0.69,219.06,218.96,0.72]
[1760024658370,4.0483289,219.05,218.96,40.34703151]
[1760024658557,4.56475099,219.07,218.95,35.04]
[1760024658558,0.69,219.04,218.95,35.04]
[1760024658873,0.69,219.04,218.96,0.72]
[1760024658874,4.0483289,219.04,218.96,0.72]
[1760024659064,8.31011901,219.07,218.96,0.72]
[1760024659265,4.0483289,219.06,218.96,0.72]
[1760024659588,4.0483289,219.02,218.94,35.04]
[1760024660586,8.61415405,219.02,218.93,51.70670484]
[1760024661160,4.56582515,219.02,218.93,51.70670484]
[1760024661482,4.0483289,219.0,218.93,4.56767003]
[1760024661675,4.0483289,219.0,218.89,31.67647521]
[1760024661676,4.0483289,218.95,218.89,20.8]
[1760024661867,4.0483289,218.95,218.88,4.56871345]
[1760024662450,0.69,218.96,218.88,4.56871345]
[1760024662681,4.0483289,218.94,218.88,4.56871345]
[1760024662887,4.0483289,218.94,218.88,15.99049707]
[1760024663186,4.0483289,218.97,218.88,0.72]
[1760024663781,0.69,218.98,218.88,0.72]
[1760024664091,4.0483289,218.97,218.88,0.72]
[1760024664289,0.69,218.98,218.88,0.72]
[1760024664506,8.6153913,218.96,218.89,4.56850472]
[1760024665002,4.0483289,218.96,218.89,15.98976654]
[1760024665889,4.7383289,218.97,218.89,15.98976654]
[1760024666093,26.05633313,219.0,218.9,0.72]
[1760024666293,4.0483289,218.99,218.9,0.72]
[1760024666529,0.69,218.98,218.9,10.87647521]
[1760024666689,4.0483289,219.0,218.91,16.70830569]
[1760024666883,4.56537618,219.04,218.92,11.59647521]
[1760024667204,4.0483289,219.03,218.93,0.72]
[1760024667495,4.7383289,219.03,218.93,0.72]
[1760024667697,0.69,219.03,218.93,0.72]
[1760024667918,4.0483289,219.02,218.93,0.72]
[1760024668290,0.69,219.03,218.93,0.72]
[1760024668489,0.69,219.03,218.94,10.87647521]
[1760024668702,4.7383289,219.02,218.93,0.72]
[1760024668902,4.7383289,219.02,218.94,4.56745358]
[1760024669101,0.69,219.02,218.94,4.56745358]
[1760024669392,4.7383289,219.02,218.94,4.56745358]
[1760024669803,0.69,219.02,218.94,4.56745358]
[1760024670005,5.25590366,219.02,218.94,4.56745358]
[1760024670520,0.69,219.02,218.94,4.56745358]
[1760024670722,5.25580635,219.02,218.94,4.56745358]
[1760024670917,20.8,219.06,218.94,4.56745358]
[1760024671092,0.69,219.02,218.94,4.56745358]
[1760024671290,0.5,219.02,218.94,4.56745358]
[1760024671600,4.0483289,219.0,218.9,40.12825332]
[1760024671802,4.7383289,219.01,218.91,0.72]
[1760024672122,9.30451241,219.01,218.92,4.56787867]
[1760024672611,9.30451241,219.01,218.92,15.98757536]
[1760024673223,9.30451241,219.01,218.92,4.56787867]
[1760024673890,4.0483289,218.99,218.92,4.56787867]
[1760024674095,0.69,218.98,218.89,10.87647521]
[1760024674502,0.69,218.98,218.9,0.72]
[1760024675226,0.69,219.03,218.91,10.87647521]
[1760024675391,0.69,219.03,218.93,10.87647521]
[1760024675596,9.30330996,219.06,218.93,10.87647521]
[1760024675809,12.3645786,219.06,218.95,10.87647521]
[1760024676010,12.3645786,219.06,218.96,0.72]
[1760024676215,4.76437457,219.09,218.97,4.56683563]
[1760024676424,3.06200808,219.08,218.98,11.59647521]
[1760024676614,3.06200808,219.08,218.99,0.72]
[1760024676809,0.69,219.07,218.97,16.70392472]
[1760024677017,3.75200808,219.07,218.97,16.70392472]
[1760024677693,3.75200808,219.07,218.98,0.72]
[1760024677902,8.31691009,219.07,218.99,4.56641855]
[1760024678415,5.25490201,219.07,218.99,4.56641855]
[1760024678824,3.06324657,219.08,219.0,0.72]
[1760024679022,0.2,219.09,219.0,0.72]
[1760024679218,7.82740834,219.09,219.0,0.72]
[1760024679428,3.75290459,219.08,219.0,0.72]
[1760024679924,4.0483289,219.06,218.96,16.16351941]
[1760024680129,3.75290459,219.05,218.96,5.2870442]
[1760024681549,5.25533189,219.05,218.96,16.70465472]
[1760024682027,4.0483289,219.03,218.96,4.5670442]
[1760024682211,0.69,219.02,218.96,4.5670442]
[1760024682535,0.69,219.02,218.94,4.5674614]
[1760024682707,4.0483289,219.01,218.94,4.5674614]
[1760024682909,0.72,219.0,218.94,4.5674614]
[1760024683709,0.72,219.0,218.93,4.56767003]
[1760024684042,5.28625204,219.0,218.93,4.56767003]
[1760024684208,4.56601719,219.01,218.93,15.9868451]
[1760024684409,4.56601719,219.01,218.94,0.69]
[1760024684632,11.41264981,219.06,218.94,0.69]
[1760024684825,7.1177127,219.05,218.94,0.69]
[1760024685018,3.0693838,219.04,218.94,0.69]
[1760024685210,3.0693838,219.03,218.94,0.69]
[1760024685422,5.25516776,219.05,218.94,0.69]
[1760024685736,3.06943866,219.04,218.96,4.5670442]
[1760024685947,3.06943866,219.03,218.97,0.7]
[1760024686113,4.0483289,219.07,218.97,0.7]
[1760024686314,3.06935264,219.06,218.97,0.7]
[1760024686622,3.06935264,219.05,218.97,0.7]
[1760024686819,3.06935264,219.04,218.97,0.7]
[1760024687020,24.8483289,219.08,218.97,0.7]
[1760024687021,4.56454263,219.08,218.97,0.7]
[1760024687244,3.06945563,219.07,218.97,0.7]
[1760024687548,3.06945563,219.06,218.97,0.7]
[1760024687731,4.56454263,219.08,218.98,15.9831948]
[1760024687931,3.06938037,219.07,218.99,0.7]
[1760024688114,5.45434827,219.09,218.99,0.7]
[1760024688115,0.2,219.09,218.99,0.7]
[1760024688314,3.0692214,219.08,218.99,0.7]
[1760024688544,3.0692214,219.07,218.99,0.7]
[1760024688743,0.2,219.09,218.99,0.7]
[1760024689054,3.06901934,219.08,218.99,0.7]
[1760024689246,3.06901934,219.07,218.99,0.7]
[1760024689540,3.06901934,219.06,218.99,0.7]
[1760024689745,9.30307982,219.08,219.0,4.56621004]
[1760024689925,3.75951417,219.07,219.0,4.56621004]
[1760024690129,8.61307982,219.08,219.0,4.56621004]
[1760024690130,3.06951417,219.06,219.0,4.56621004]
[1760024690316,7.80784307,219.05,218.97,4.56683563]
[1760024690515,3.06951417,219.04,218.97,4.56683563]
[1760024690731,3.75951417,219.03,218.97,4.56683563]
[1760024690938,0.69,219.03,218.97,4.56683563]
[1760024691220,4.0483289,219.01,218.94,11.41825653]
[1760024691836,4.0483289,219.01,218.94,15.98571793]
[1760024692433,4.0483289,219.01,218.93,4.56766214]
[1760024692434,4.0483289,218.99,218.93,4.56766214]
[1760024692636,4.7383289,218.99,218.91,5.26795471]
[1760024692848,4.0483289,218.97,218.91,5.26795471]
[1760024693033,0.69,218.99,218.91,5.26795471]
[1760024693227,0.69,218.99,218.91,16.68817306]
[1760024693432,4.7383289,218.99,218.91,16.68817306]
[1760024694149,3.07111221,218.98,218.92,0.7]
[1760024694357,4.0483289,219.0,218.92,0.7]
[1760024694560,3.07091134,218.99,218.92,0.7]
[1760024694862,0.69,219.0,218.92,0.7]
[1760024695041,4.0483289,219.02,218.92,0.7]
[1760024695240,3.07079963,219.01,218.92,0.7]
[1760024695437,0.69,219.01,218.92,0.7]
[1760024695636,4.0483289,218.95,218.89,0.7]
[1760024695862,0.69,218.97,218.89,0.7]
[1760024696046,0.69,218.97,218.9,4.56829602]
[1760024696244,4.7383289,218.97,218.9,4.56829602]
[1760024696963,4.0483289,218.97,218.91,0.7]
[1760024697263,5.25558462,219.03,218.91,0.7]
[1760024697432,3.76047444,219.02,218.92,10.87647521]
[1760024697632,3.07047444,219.01,218.94,10.87647521]
[1760024697840,0.69,219.02,218.95,0.7]
[1760024698037,3.07031686,219.01,218.96,4.5670442]
[1760024698257,4.0483289,219.03,218.97,0.7]
[1760024698453,3.07030038,219.02,218.97,0.7]
[1760024698662,3.07030038,219.02,218.96,15.98465472]
[1760024698663,5.25456197,219.08,218.98,0.7]
[1760024698854,4.0483289,219.06,218.98,0.7]
[1760024699061,0.69,219.08,219.0,20.8]
[1760024699259,3.06971862,219.07,219.01,0.7]
[1760024699436,3.06971862,219.06,219.01,0.7]
[1760024699745,0.2,219.09,219.02,0.7]
[1760024699933,3.06932428,219.08,219.02,0.7]
[1760024700139,0.2,219.09,219.03,4.56558462]
[1760024700339,3.06903947,219.08,219.02,5.26576283]
[1760024700639,3.06903947,219.07,219.02,5.26576283]
[1760024700837,0.2,219.09,219.03,0.7]
[1760024701041,3.06920129,219.08,219.03,0.7]
[1760024701348,3.06920129,219.07,219.02,4.56576283]
[1760024701552,4.2483289,219.09,219.03,0.7]
[1760024701863,3.06885109,219.08,219.03,0.7]
[1760024702162,0.2,219.09,219.04,10.87647521]
[1760024702332,0.2,219.09,219.06,10.87647521]
[1760024702757,0.2,219.09,219.08,10.87647521]
[1760024703147,0.2,219.09,219.08,0.7]
[1760024704343,0.2,219.09,219.08,5.26454263]
[1760024705868,0.2,219.09,218.95,19.99999999]
[1760024706167,0.2,219.09,219.05,10.87647521]
[1760024706348,0.2,219.09,219.06,4.56495937]
[1760024706866,0.2,219.09,219.07,0.7]
[1760024707064,0.2,219.09,219.06,4.56495937]
[1760024707065,0.2,219.09,219.08,0.7]
[1760024707367,0.2,219.09,219.06,15.97735779]
[1760024707553,0.2,219.09,219.04,20.8]
[1760024707754,4.0483289,219.05,218.98,11.41651342]
[1760024707960,4.0483289,219.05,218.97,24.34]
[1760024708270,9.30313313,219.07,218.99,4.56641855]
[1760024708451,4.0483289,219.05,218.98,0.7]
[1760024708651,4.0483289,219.05,218.97,34.36]
[1760024708652,0.69,219.04,218.97,34.36]
[1760024708854,3.06148193,219.08,218.98,11.57647521]
[1760024709051,0.89,219.09,219.0,10.87647521]
[1760024709364,3.06148193,219.08,219.0,10.87647521]
[1760024709571,7.99981083,219.09,219.0,10.87647521]
[1760024709863,7.99981083,219.09,219.0,11.57647521]
[1760024710245,3.06148193,219.08,219.01,4.56600155]
[1760024710450,0.89,219.09,219.01,4.56600155]
[1760024710768,7.80129626,219.08,219.01,4.56600155]
[1760024711061,4.0483289,219.06,219.01,4.56600155]
[1760024711265,4.0483289,219.04,218.99,4.56641855]
[1760024711469,4.7383289,219.04,218.99,4.56641855]
[1760024712052,3.75402388,219.06,218.99,4.56641855]
[1760024712358,4.7383289,219.06,218.99,4.56641855]
[1760024712560,0.69,219.06,218.99,11.41604639]
[1760024712752,4.7383289,219.06,218.99,11.41604639]
[1760024713076,0.2,219.09,219.0,11.57647521]
[1760024713667,0.2,219.09,219.0,10.87647521]
[1760024713950,0.2,219.09,219.01,0.7]
[1760024714275,0.91,219.09,219.02,0.7]
[1760024714475,0.2,219.09,219.05,10.87647521]
[1760024714796,0.2,219.09,219.04,4.56537618]
[1760024715078,0.2,219.09,219.04,5.26537618]
[1760024715459,0.2,219.09,219.04,0.7]
[1760024715981,0.2,219.09,219.05,0.7]
[1760024716964,0.2,219.09,219.02,0.7]
[1760024718877,0.2,219.09,219.04,10.87647521]
[1760024719103,0.2,219.09,219.05,0.7]
[1760024719276,0.2,219.09,219.06,0.7]
[1760024719459,0.2,219.09,219.04,10.87647521]
[1760024719773,0.2,219.09,219.05,0.7]
[1760024720082,0.2,219.09,219.06,0.7]
[1760024720286,0.2,219.09,219.07,0.7]
[1760024720486,0.2,219.09,219.08,0.7]
[1760024720868,0.2,219.09,219.08,5.26454263]
[1760024721203,0.2,219.09,219.08,0.7]
[1760024721360,0.2,219.09,219.06,0.7]
[1760024721563,0.2,219.09,219.07,0.7]
[1760024721761,0.2,219.09,219.05,15.97806558]
[1760024722101,6.74620155,219.08,219.01,4.56590747]
[1760024722261,0.71,219.08,219.01,4.56590747]
[1760024722867,0.71,219.08,219.0,4.56621004]
[1760024723294,3.77236762,219.08,219.0,15.98173515]
[1760024723502,0.2,219.09,219.01,11.57647521]
[1760024723710,0.2,219.09,219.01,45.89647521]
[1760024723868,0.2,219.09,219.03,10.87647521]
[1760024724270,0.2,219.09,219.04,0.7]
[1760024724485,0.2,219.09,219.05,0.7]
[1760024724684,0.2,219.09,219.03,10.87647521]
[1760024724911,0.2,219.09,219.07,10.87647521]
[1760024725105,0.2,219.09,219.08,4.56454263]
[1760024725294,0.2,219.09,219.08,5.26454263]
[1760024725610,0.2,219.09,219.08,16.14101784]
[1760024726082,0.2,219.09,219.08,15.44101784]
[1760024726290,0.2,219.09,219.08,16.14101784]
[1760024726677,1e-08,219.09,219.08,16.14101784]
[1760024730413,1e-08,219.09,219.08,16.5974721]
[1760024730926,1e-08,219.09,219.08,16.14101784]
[1760024733715,1e-08,219.09,219.08,16.5974721]
[1760024733895,1e-08,219.09,219.08,36.59747209]
[1760024734294,1e-08,219.09,219.08,16.5974721]
[1760024734488,1e-08,219.09,219.08,36.59747209]
[1760024735728,1e-08,219.09,219.08,50.7774721]
[1760024737707,1e-08,219.09,219.08,52.60316415]
[1760024738814,0.2,219.2,219.18,10.87647521]
[1760024739000,0.2,219.2,219.08,103.48710125]
[1760024739001,1e-08,219.2,219.19,44.99647521]
[1760024740014,1e-08,219.31,219.3,20.8]
[1760024740198,1e-08,219.31,219.3,54.9]
[1760024740397,1e-08,219.31,219.3,59.45996352]
[1760024740792,1e-08,219.31,219.3,70.33643873]
[1760024742697,1e-08,219.31,219.3,36.23643873]
[1760024743106,1e-08,219.31,219.3,70.33643873]
[1760024746231,1e-08,219.31,219.3,70.31643873]
[1760024748230,1e-08,219.31,219.3,70.98643873]
[1760024748428,1e-08,219.31,219.3,84.66851293]
[1760024749531,1e-08,219.31,219.3,63.86851293]
[1760024749825,1e-08,219.31,219.3,50.18643873]
[1760024751201,1e-08,219.31,219.3,115.98643873]
[1760024751732,1e-08,219.31,219.3,50.18643873]
[1760024752926,1e-08,219.31,219.3,75.20784591]
[1760024754848,1e-08,219.31,219.3,41.12784591]
[1760024755139,1e-08,219.31,219.3,75.04784591]
[1760024755522,1e-08,219.31,219.3,75.50384226]
[1760024756037,0.66,219.47,219.4,10.87647521]
[1760024756216,0.66,219.45,219.42,4.55746969]
[1760024756412,0.66,219.44,219.43,33.9]
[1760024756612,0.66,219.44,219.43,33.88]
[1760024757443,0.2,219.53,219.43,33.88]
[1760024757653,0.66,219.48,219.43,33.88]
[1760024757854,0.66,219.47,219.44,33.86]
[1760024758015,0.66,219.47,219.45,33.86]
[1760024758216,0.66,219.5,219.46,4.55663902]
[1760024758551,0.66,219.49,219.47,33.86]
[1760024758921,0.66,219.51,219.47,33.86]
[1760024759119,0.66,219.5,219.47,33.86]
[1760024759436,0.66,219.52,219.47,33.86]
[1760024759636,0.66,219.51,219.48,10.87647521]
[1760024759817,0.66,219.5,219.49,33.86]
[1760024760534,0.66,219.5,219.45,25.35666019]
[1760024760738,0.66,219.49,219.46,33.84]
[1760024760932,0.66,219.48,219.46,33.84]
[1760024761117,0.66,219.47,219.43,4.55707678]
[1760024761326,0.66,219.47,219.42,10.87647521]
[1760024761327,0.66,219.46,219.42,4.55746911]
[1760024761651,0.66,219.45,219.42,33.84]
[1760024761921,0.66,219.45,219.4,10.87647521]
[1760024761922,0.66,219.44,219.39,20.8]
[1760024762120,0.66,219.43,219.4,33.84]
[1760024762348,0.66,219.42,219.4,33.84]
[1760024762536,20.8,219.5,219.4,33.84]
[1760024762748,0.66,219.41,219.34,15.43560715]
[1760024763058,0.66,219.41,219.3,4.55996352]
[1760024763232,0.66,219.4,219.3,4.55996352]
[1760024763417,0.66,219.39,219.26,5.02140719]
[1760024763757,0.66,219.38,219.23,4.56140685]
[1760024763920,20.8,219.34,219.23,26.7]
[1760024764125,0.66,219.33,219.23,27.37]
[1760024764434,0.66,219.32,219.25,4.56100342]
[1760024764738,0.66,219.32,219.26,44.71647521]
[1760024765144,22.77904328,219.5,219.3,10.87647521]
[1760024765145,4.55580865,219.5,219.3,10.87647521]
[1760024765457,0.66,219.4,219.32,10.87647521]
[1760024766029,20.8,219.47,219.32,10.87647521]
[1760024766357,20.8,219.42,219.33,33.86]
[1760024766566,0.66,219.41,219.31,33.84]
[1760024766863,0.66,219.4,219.31,33.84]
[1760024767024,0.66,219.39,219.31,33.84]
[1760024767222,0.66,219.38,219.31,33.84]
[1760024767661,20.8,219.4,219.31,33.84]
[1760024767850,0.66,219.37,219.31,33.84]
[1760024768366,0.66,219.4,219.32,11.54647521]
[1760024768524,13.80904723,219.51,219.34,10.87647521]
[1760024768853,0.66,219.5,219.36,10.87647521]
[1760024769026,0.66,219.5,219.28,10.87647521]
[1760024769027,0.66,219.49,219.28,10.87647521]
[1760024769225,20.8,219.42,219.28,10.87647521]
[1760024769453,0.66,219.41,219.29,34.26]
[1760024769623,20.8,219.42,219.29,34.26]
[1760024769823,0.66,219.4,219.29,34.26]
[1760024770061,0.66,219.39,219.29,34.26]
[1760024770227,0.66,219.38,219.3,4.55996352]
[1760024770429,25.35765445,219.42,219.28,4.56028025]
[1760024770644,0.66,219.37,219.23,0.67]
[1760024770861,0.66,219.37,219.24,34.24]
[1760024771162,20.8,219.34,219.18,11.40596494]
[1760024771354,20.8,219.34,219.11,20.66999999]
[1760024771355,0.66,219.33,219.21,34.22]
[1760024771554,0.66,219.32,219.21,34.22]
[1760024771847,0.66,219.31,219.16,0.67]